bitfinex-derivatives/quotes_BTCF0:USTF0_20250915
["timestamp","ask_amount","ask_price","bid_price","bid_amount"]
[1757961877739,1.11580439,115030.0,115020.0,0.02123]
[1757961877945,0.03584,115020.0,115010.0,0.77016302]
[1757961878243,0.41843473,115020.0,115010.0,0.77016302]
[1757961879353,0.02179473,115020.0,115010.0,1.51714604]
[1757961880353,0.09024227,115020.0,115010.0,1.51714604]
[1757961881157,0.09024227,115020.0,115010.0,1.14285302]
[1757961881558,0.09024227,115020.0,115010.0,1.51714604]
[1757961881950,0.09024227,115020.0,115010.0,1.14285302]
[1757961883156,0.09124227,115020.0,115010.0,1.14285302]
[1757961883350,0.12708227,115020.0,115010.0,0.75642302]
[1757961883556,0.86217529,115020.0,115010.0,1.18782302]
[1757961883950,0.48788227,115020.0,115010.0,1.18782302]
[1757961884254,0.48888227,115020.0,115010.0,0.39562302]
[1757961884459,0.48888227,115020.0,115010.0,1.18782302]
[1757961886260,0.11469227,115020.0,115010.0,1.56051302]
[1757961889163,0.11469227,115020.0,115010.0,0.76831302]
[1757961889359,0.11469227,115020.0,115010.0,1.56047302]
[1757961892362,0.11469227,115020.0,115010.0,0.76831302]
[1757961892563,0.48888227,115020.0,115010.0,1.18778302]
[1757961893867,0.12808227,115020.0,115010.0,1.18778302]
[1757961896266,0.11469227,115020.0,115010.0,1.19967302]
[1757961897066,0.11469227,115020.0,115010.0,1.56047302]
[1757961900372,0.11469227,115020.0,115010.0,1.58047302]
[1757961901272,0.11469227,115020.0,115010.0,1.56047302]
[1757961903370,0.11469227,115020.0,115010.0,0.76831302]
[1757961903576,0.12844227,115020.0,115010.0,1.56043302]
[1757961904076,0.50273529,115020.0,115010.0,0.02133]
[1757961904376,1.11353529,115020.0,115010.0,0.02133]
[1757961904570,1.11353529,115020.0,115010.0,0.39562302]
[1757961904975,0.11469227,115020.0,115010.0,0.40864302]
[1757961905269,0.47549227,115020.0,115010.0,0.40864302]
[1757961905975,0.48924227,115020.0,115010.0,0.39562302]
[1757961906673,0.86353529,115020.0,115010.0,0.39562302]
[1757961907067,0.48924227,115020.0,115010.0,0.39562302]
[1757961908073,0.48924227,115020.0,115010.0,1.18770302]
[1757961908372,0.48924227,115020.0,115010.0,0.39562302]
[1757961908571,0.86353529,115020.0,115010.0,0.39562302]
[1757961909476,0.48924227,115020.0,115010.0,0.39562302]
[1757961909664,0.86353529,115020.0,115010.0,0.39562302]
[1757961910369,0.48924227,115020.0,115010.0,0.39562302]
[1757961910769,0.86354532,115020.0,115010.0,0.39562302]
[1757961913778,0.86354532,115020.0,115010.0,0.37439302]
[1757961913978,0.86354532,115020.0,115010.0,0.39626302]
[1757961915379,0.86454532,115020.0,115010.0,0.39626302]
[1757961915578,0.86554532,115020.0,115010.0,0.39626302]
[1757961916376,0.4912523,115020.0,115010.0,0.39626302]
[1757961916572,0.86554532,115020.0,115010.0,0.39626302]
[1757961917076,0.4912523,115020.0,115010.0,0.39626302]
[1757961917272,0.4912523,115020.0,115010.0,0.40928302]
[1757961917975,0.1167023,115020.0,115010.0,0.65928302]
[1757961918182,0.0942523,115020.0,115010.0,1.39437604]
[1757961918682,0.0942523,115020.0,115010.0,1.02008302]
[1757961919885,0.02580476,115020.0,115010.0,1.39535077]
[1757961920179,0.003,115020.0,115010.0,1.39535077]
[1757961920782,0.002,115020.0,115010.0,1.39535077]
[1757961921183,0.001,115020.0,115010.0,1.39535077]
[1757961921376,0.0001,115030.0,115010.0,1.39735077]
[1757961921583,0.0001,115030.0,115020.0,1.60728317]
[1757961921785,0.0001,115040.0,115030.0,0.121805]
[1757961922087,0.0001,115050.0,115040.0,0.03489]
[1757961922388,0.02179675,115050.0,115040.0,1.85299114]
[1757961922580,0.02271,115060.0,115050.0,0.03489]
[1757961922886,0.02271,115060.0,115050.0,0.36752057]
[1757961922887,0.04438954,115060.0,115050.0,0.36752057]
[1757961923085,0.02177954,115060.0,115050.0,0.36752057]
[1757961923278,0.02177954,115060.0,115050.0,1.16522047]
[1757961923478,0.0001,115070.0,115050.0,0.97832057]
[1757961923681,0.0001,115070.0,115060.0,1.52032057]
[1757961923878,0.02176932,115070.0,115060.0,1.52032057]
[1757961924085,0.02176932,115070.0,115060.0,0.72832057]
[1757961924380,0.02176932,115070.0,115060.0,1.52032057]
[1757961924381,0.11254692,115070.0,115060.0,1.52032057]
[1757961924680,0.002,115070.0,115060.0,0.7489278]
[1757961924886,0.002,115070.0,115060.0,1.5408878]
[1757961925081,0.003,115070.0,115060.0,1.5408878]
[1757961925387,0.005,115070.0,115060.0,1.5408878]
[1757961925687,0.005,115070.0,115060.0,0.7489278]
[1757961925887,0.005,115070.0,115060.0,1.5408878]
[1757961926087,0.003,115070.0,115060.0,1.5408878]
[1757961926287,0.003,115070.0,115060.0,1.7908878]
[1757961926483,0.016097,115080.0,115070.0,0.01334]
[1757961926684,0.015997,115080.0,115070.0,0.36760057]
[1757961926884,0.02172079,115080.0,115070.0,0.36760057]
[1757961927086,0.39637079,115090.0,115070.0,0.36760057]
[1757961927287,0.39637079,115090.0,115080.0,0.02163]
[1757961927288,0.41807079,115090.0,115080.0,0.02163]
[1757961927489,0.41807079,115090.0,115080.0,0.35426057]
[1757961927490,0.41797079,115090.0,115080.0,0.35426057]
[1757961927885,0.48811395,115090.0,115080.0,0.35426057]
[1757961928588,0.49011395,115090.0,115080.0,0.35426057]
[1757961928989,0.49011395,115090.0,115080.0,0.02163]
[1757961929490,0.49211395,115090.0,115080.0,0.02163]
[1757961930286,0.84006229,115090.0,115080.0,0.02163]
[1757961930490,0.03528,115070.0,115060.0,0.02163]
[1757961930788,0.75043136,115070.0,115040.0,0.70645057]
[1757961930988,0.39608,115060.0,115050.0,0.02163]
[1757961931791,0.41776297,115060.0,115050.0,0.02163]
[1757961932389,0.41776297,115060.0,115050.0,0.35526057]
[1757961933695,0.41776297,115060.0,115050.0,0.35726057]
[1757961933895,0.41776297,115060.0,115050.0,0.35626057]
[1757961934089,0.41876297,115060.0,115050.0,0.35426057]
[1757961934285,0.41976297,115060.0,115050.0,0.35426057]
[1757961934990,0.03528,115050.0,115040.0,0.02163]
[1757961935187,0.38956963,115050.0,115040.0,0.02163]
[1757961935389,0.03528,115040.0,115030.0,0.02163]
[1757961935587,0.40533008,115040.0,115030.0,0.02163]
[1757961935789,0.03528,115020.0,115010.0,1.54013409]
[1757961935990,0.03528,115020.0,115010.0,1.75013409]
[1757961936497,0.03328,115020.0,115010.0,1.75013409]
[1757961936889,0.03328,115020.0,115010.0,0.40260352]
[1757961937090,0.05493282,115020.0,115010.0,0.40660352]
[1757961937401,0.05493282,115020.0,115010.0,0.73923409]
[1757961937702,0.41573282,115020.0,115010.0,0.37843409]
[1757961938498,0.41573282,115020.0,115010.0,0.04580352]
[1757961938801,0.74836339,115020.0,115010.0,0.02417352]
[1757961939100,0.41573282,115020.0,115010.0,0.02417352]
[1757961939299,0.41573282,115020.0,115010.0,0.04580352]
[1757961939498,0.41573282,115020.0,115010.0,0.04180352]
[1757961943404,0.41573282,115020.0,115010.0,0.02017352]
[1757961943704,0.41573282,115020.0,115010.0,0.04180352]
[1757961944499,0.41573282,115020.0,115010.0,0.37443409]
[1757961945200,0.41573282,115020.0,115010.0,0.04180352]
[1757961945409,0.41573282,115020.0,115010.0,0.02017352]
[1757961946307,0.41573282,115020.0,115010.0,0.04180352]
[1757961947304,1.20765282,115020.0,115010.0,0.04180352]
[1757961947508,0.41573282,115020.0,115010.0,0.04180352]
[1757961951807,0.41573282,115020.0,115010.0,0.37443409]
[1757961953603,0.40415282,115020.0,115010.0,0.38781409]
[1757961953806,0.0217,115020.0,115010.0,0.99861409]
[1757961955111,0.39528,115020.0,115010.0,0.04180352]
[1757961955412,0.41693038,115020.0,115010.0,0.04180352]
[1757961957408,0.41693038,115020.0,115010.0,0.37443409]
[1757961960313,0.05613038,115020.0,115010.0,0.37443409]
[1757961960513,0.05613038,115020.0,115010.0,0.38821409]
[1757961961116,0.04335038,115020.0,115010.0,0.38821409]
[1757961961311,0.02165038,115020.0,115010.0,0.99901409]
[1757961961514,0.02165038,115020.0,115010.0,1.08594429]
[1757961961714,0.02165038,115020.0,115010.0,0.99901409]
[1757961962115,0.02165038,115020.0,115010.0,1.18594429]
[1757961962922,0.02165038,115020.0,115010.0,1.20594429]
[1757961963313,0.02165038,115020.0,115010.0,1.41594429]
[1757961964210,0.0001,115030.0,115020.0,0.1222627]
[1757961964415,0.0001,115040.0,115030.0,0.03504]
[1757961964614,0.45309373,115050.0,115030.0,0.72847057]
[1757961964811,0.02289,115040.0,115030.0,0.39584]
[1757961965016,0.04465907,115040.0,115030.0,0.36767057]
[1757961965216,0.04465907,115040.0,115030.0,1.15963057]
[1757961965417,0.04465907,115040.0,115030.0,0.36767057]
[1757961966422,0.04765907,115040.0,115030.0,0.36767057]
[1757961966615,0.06090907,115040.0,115030.0,0.36767057]
[1757961966812,0.06190907,115040.0,115030.0,0.03504]
[1757961967013,0.08994659,115040.0,115030.0,0.35419057]
[1757961967521,0.07669659,115040.0,115030.0,0.36767057]
[1757961968724,0.07569659,115040.0,115030.0,0.36767057]
[1757961969023,0.07469659,115040.0,115030.0,0.36767057]
[1757961973335,0.08794659,115040.0,115030.0,0.36767057]
[1757961973832,0.07469659,115040.0,115030.0,0.36767057]
[1757961975336,0.07469659,115040.0,115030.0,0.38767057]
[1757961977336,0.07469659,115040.0,115030.0,0.36767057]
[1757961977738,0.08794659,115040.0,115030.0,0.02156]
[1757961978239,0.08794659,115040.0,115030.0,0.35419057]
[1757961978532,0.08794659,115040.0,115030.0,0.02156]
[1757961979336,0.78137716,115040.0,115030.0,0.02156]
[1757961979538,0.03614,115030.0,115020.0,0.71499057]
[1757961979736,0.05790907,115030.0,115020.0,0.75656174]
[1757961982641,0.04465907,115030.0,115020.0,1.14454348]
[1757961984643,0.02176907,115030.0,115020.0,1.63454348]
[1757961986244,0.02176907,115030.0,115020.0,1.63554348]
[1757961987041,0.02176907,115030.0,115020.0,1.63454348]
[1757961990444,0.02176907,115030.0,115020.0,1.47146618]
[1757961991941,0.02176907,115030.0,115020.0,1.47246618]
[1757961992148,0.0001,115040.0,115030.0,0.1234751]
[1757961992340,0.0001,115050.0,115040.0,0.1233676]
[1757961992541,0.02187928,115060.0,115040.0,1.57257108]
[1757961992846,0.02187737,115060.0,115050.0,1.93846348]
[1757961993049,0.02177737,115060.0,115050.0,1.93846348]
[1757961993245,0.05062877,115060.0,115050.0,1.95846348]
[1757961993652,0.02177737,115060.0,115050.0,2.24846348]
[1757961993846,0.02177737,115060.0,115050.0,2.33536348]
[1757961994747,0.02277737,115060.0,115050.0,2.33536348]
[1757961995248,0.02577737,115060.0,115050.0,2.33536348]
[1757961995651,0.02277737,115060.0,115050.0,2.24846348]
[1757961995859,0.02477737,115060.0,115050.0,1.95846348]
[1757961996058,0.02377737,115060.0,115050.0,1.95846348]
[1757961996251,0.02377737,115060.0,115050.0,1.93846348]
[1757961996559,0.02374832,115060.0,115050.0,1.93846348]
[1757961997447,0.02174832,115060.0,115050.0,1.93846348]
[1757961997650,0.02174832,115060.0,115050.0,2.27846348]
[1757961997850,0.02174832,115060.0,115050.0,1.93846348]
[1757961998052,0.02174832,115060.0,115050.0,2.05846348]
[1757961998351,0.02174832,115060.0,115050.0,2.61536348]
[1757961998562,0.02174832,115060.0,115050.0,2.98956522]
[1757961998758,0.02174832,115060.0,115050.0,2.61536348]
[1757961998961,0.0001,115070.0,115060.0,0.0868924]
[1757961999263,0.0001,115080.0,115070.0,0.03656]
[1757961999454,0.07024316,115090.0,115080.0,0.03646]
[1757961999658,0.07014316,115090.0,115080.0,1.14566348]
[1757961999864,0.02197,115090.0,115080.0,1.14566348]
[1757962000457,0.0001,115100.0,115080.0,1.14566348]
[1757962000658,0.04695479,115100.0,115090.0,1.20426174]
[1757962000959,0.04685479,115100.0,115090.0,0.41106174]
[1757962001154,0.04685479,115100.0,115090.0,1.20426174]
[1757962001561,0.06014479,115100.0,115090.0,1.20426174]
[1757962001758,0.42094479,115100.0,115090.0,1.19044174]
[1757962001960,0.01329,115090.0,115080.0,0.73500174]
[1757962002161,0.46610587,115090.0,115080.0,0.39728174]
[1757962002658,0.46610587,115090.0,115080.0,0.02308]
[1757962002860,1.09030761,115090.0,115080.0,0.39728174]
[1757962003066,0.71610587,115090.0,115080.0,0.39728174]
[1757962003665,0.71710587,115090.0,115080.0,0.39728174]
[1757962004161,0.72010587,115090.0,115080.0,0.39728174]
[1757962005761,0.47010587,115090.0,115080.0,0.41728174]
[1757962005966,0.47010587,115090.0,115080.0,0.80526348]
[1757962005967,0.45681587,115090.0,115080.0,0.80526348]
[1757962006461,0.45681587,115090.0,115080.0,0.78526348]
[1757962006866,0.45581587,115090.0,115080.0,0.78526348]
[1757962007568,0.45481587,115090.0,115080.0,0.78526348]
[1757962007966,0.45481587,115090.0,115080.0,0.77148348]
[1757962008171,0.46810587,115090.0,115080.0,0.02308]
[1757962008370,0.46810587,115090.0,115080.0,0.78526348]
[1757962009668,0.45481587,115090.0,115080.0,0.78526348]
[1757962010977,0.09401587,115090.0,115080.0,1.14606348]
[1757962011274,0.11559921,115090.0,115080.0,1.14606348]
[1757962013777,0.04555334,115090.0,115080.0,1.14606348]
[1757962013973,0.02358334,115090.0,115080.0,1.14606348]
[1757962015977,0.02358334,115090.0,115080.0,1.93946348]
[1757962020180,0.02358334,115090.0,115080.0,1.95946348]
[1757962022383,0.02358334,115090.0,115080.0,1.14606348]
[1757962022575,0.05770334,115090.0,115080.0,1.92504348]
[1757962023284,0.05770334,115090.0,115080.0,1.92500348]
[1757962024282,0.43190508,115090.0,115080.0,1.19024174]
[1757962024485,1.04170508,115090.0,115080.0,0.39728174]
[1757962025181,0.03412,115070.0,115060.0,0.38395]
[1757962025385,0.42990508,115070.0,115060.0,0.38395]
[1757962025587,0.42990508,115070.0,115060.0,0.75815174]
[1757962026587,0.30570334,115070.0,115060.0,0.75815174]
[1757962028591,0.30570334,115070.0,115060.0,0.77174174]
[1757962028791,0.30670334,115070.0,115060.0,0.77174174]
[1757962029285,0.30770334,115070.0,115060.0,0.77174174]
[1757962029790,0.30570334,115070.0,115060.0,0.77174174]
[1757962029987,0.30670334,115070.0,115060.0,0.77174174]
[1757962030489,0.30770334,115070.0,115060.0,0.77174174]
[1757962031981,0.30570334,115070.0,115060.0,0.77174174]
[1757962032186,0.30670334,115070.0,115060.0,0.77174174]
[1757962032585,0.30570334,115070.0,115060.0,0.77174174]
[1757962032884,0.30770334,115070.0,115060.0,0.77174174]
[1757962033284,0.30670334,115070.0,115060.0,0.75815174]
[1757962033685,0.30770334,115070.0,115060.0,0.75815174]
[1757962034596,0.02258334,115070.0,115060.0,0.77174174]
[1757962034786,0.02458334,115070.0,115060.0,1.73283598]
[1757962036401,0.003,115070.0,115060.0,1.73283598]
[1757962036998,0.002,115070.0,115060.0,1.73283598]
[1757962037697,0.0001,115080.0,115070.0,0.01359]
[1757962037893,0.0001,115090.0,115070.0,2.28630828]
[1757962038089,0.02157,115090.0,115080.0,1.12279348]
[1757962038288,0.49059078,115100.0,115090.0,0.03674]
[1757962038493,0.11718085,115100.0,115090.0,1.56518174]
[1757962038693,0.04649486,115100.0,115090.0,1.56518174]
[1757962039394,0.05049486,115100.0,115090.0,1.56518174]
[1757962039788,0.02561007,115100.0,115090.0,1.56518174]
[1757962040398,0.02761007,115100.0,115090.0,1.56518174]
[1757962041200,0.02661007,115100.0,115090.0,1.56518174]
[1757962041398,0.02261007,115100.0,115090.0,1.56518174]
[1757962041697,0.02461007,115100.0,115090.0,1.56518174]
[1757962041892,0.02461007,115100.0,115090.0,1.52315234]
[1757962042797,0.02461007,115100.0,115090.0,1.67315234]
[1757962042998,0.02461007,115100.0,115090.0,1.91002214]
[1757962043203,0.02461007,115100.0,115090.0,1.82315234]
[1757962043500,0.02461007,115100.0,115090.0,0.77971234]
[1757962043702,0.02461007,115100.0,115090.0,1.57307234]
[1757962045004,0.02461007,115100.0,115090.0,1.92050046]
[1757962045204,0.003,115100.0,115090.0,2.17050046]
[1757962045506,0.003,115100.0,115090.0,1.29027066]
[1757962046000,0.003,115100.0,115090.0,2.08339066]
[1757962046204,0.003,115100.0,115090.0,1.29027066]
[1757962046401,0.02458808,115100.0,115090.0,2.08331066]
[1757962047192,0.02458808,115100.0,115090.0,2.08323066]
[1757962047703,0.02458808,115100.0,115090.0,1.29027066]
[1757962047997,0.02458808,115100.0,115090.0,2.17002046]
[1757962049994,0.02458808,115100.0,115090.0,1.37714046]
[1757962050203,0.02458808,115100.0,115090.0,1.29027066]
[1757962050400,0.02458808,115100.0,115090.0,2.08291066]
[1757962051305,0.003,115100.0,115090.0,2.08291066]
[1757962051894,0.003,115100.0,115090.0,1.29027066]
[1757962052098,0.003,115100.0,115090.0,2.08275066]
[1757962053503,0.003,115100.0,115090.0,1.91962046]
[1757962053695,0.02456759,115100.0,115090.0,1.91962046]
[1757962055302,0.003,115100.0,115090.0,1.91962046]
[1757962055806,0.003,115100.0,115090.0,0.79496812]
[1757962056008,0.003,115100.0,115090.0,1.91930046]
[1757962058803,0.003,115100.0,115090.0,2.16930046]
[1757962059001,0.0001,115110.0,115100.0,0.1193822]
[1757962059201,0.0001,115120.0,115110.0,0.03508]
[1757962059402,0.38247822,115130.0,115110.0,1.52161234]
[1757962059604,0.40466822,115130.0,115120.0,0.36725234]
[1757962059808,0.41785822,115130.0,115120.0,0.36725234]
[1757962060204,0.41785822,115130.0,115120.0,0.35404234]
[1757962060610,0.44218034,115130.0,115120.0,0.35404234]
[1757962060811,0.44718034,115130.0,115120.0,0.35404234]
[1757962061008,0.51622245,115130.0,115120.0,0.35404234]
[1757962062211,0.51922245,115130.0,115120.0,0.35404234]
[1757962066310,0.76922245,115130.0,115120.0,0.35404234]
[1757962066517,0.03548,115120.0,115110.0,0.02187]
[1757962066717,0.03548,115110.0,115100.0,0.02187]
[1757962067018,0.03548,115100.0,115090.0,0.04242832]
[1757962067207,0.41785822,115100.0,115090.0,0.02187]
[1757962067623,0.03548,115090.0,115080.0,1.14776234]
[1757962067813,0.41785822,115090.0,115080.0,1.14776234]
[1757962068509,0.41785822,115090.0,115070.0,0.69297234]
[1757962068710,0.03548,115080.0,115070.0,0.71484234]
[1757962068911,0.05705822,115080.0,115070.0,1.50892234]
[1757962069421,0.02157822,115080.0,115070.0,1.52071234]
[1757962069819,0.39576822,115090.0,115070.0,1.52071234]
[1757962070020,0.41795822,115090.0,115080.0,0.35404234]
[1757962070221,0.41785822,115090.0,115080.0,0.35404234]
[1757962072423,0.48827803,115090.0,115080.0,0.35404234]
[1757962073821,0.03558,115070.0,115060.0,0.02169]
[1757962074018,0.41795822,115070.0,115060.0,0.02169]
[1757962074523,0.41795822,115070.0,115060.0,0.35386234]
[1757962075019,0.41795822,115070.0,115060.0,0.35586234]
[1757962076024,1.21215822,115070.0,115060.0,0.35586234]
[1757962076920,1.21215822,115070.0,115060.0,0.35486234]
[1757962077125,1.21415822,115070.0,115060.0,0.35386234]
[1757962078120,1.21415822,115070.0,115050.0,0.33217234]
[1757962078322,0.39544,115060.0,115050.0,0.02141]
[1757962078520,0.41701822,115060.0,115050.0,0.02141]
[1757962078726,0.03464,115050.0,115040.0,0.37398396]
[1757962079024,0.07753154,115050.0,115040.0,0.04181162]
[1757962079220,0.87137154,115050.0,115040.0,0.04181162]
[1757962079425,0.87137154,115050.0,115040.0,0.02141]
[1757962079820,0.87145154,115050.0,115040.0,0.02141]
[1757962080625,1.23225154,115050.0,115040.0,0.02241]
[1757962080825,1.30069525,115050.0,115040.0,0.02241]
[1757962081125,1.30069525,115050.0,115040.0,0.02141]
[1757962081326,0.50777525,115050.0,115040.0,0.02141]
[1757962081519,0.50877525,115050.0,115040.0,0.02141]
[1757962081720,1.30257525,115050.0,115040.0,0.02141]
[1757962081921,1.30253525,115050.0,115040.0,0.02141]
[1757962082123,1.63470759,115050.0,115040.0,0.02141]
[1757962082327,0.03464,115030.0,115020.0,0.71438234]
[1757962082730,0.01362,115040.0,115030.0,0.01313]
[1757962082923,0.03464,115040.0,115030.0,0.35358234]
[1757962083124,0.05615768,115040.0,115030.0,0.35358234]
[1757962084230,0.03464,115040.0,115030.0,0.35358234]
[1757962086432,0.05612499,115040.0,115030.0,0.02141]
[1757962087324,0.05612499,115040.0,115030.0,0.35358234]
[1757962090326,0.85020499,115040.0,115030.0,0.35358234]
[1757962094832,0.85020499,115040.0,115030.0,0.02141]
[1757962095038,0.85020499,115040.0,115030.0,0.35358234]
[1757962095932,0.02148499,115040.0,115030.0,0.99751234]
[1757962096135,0.02148499,115040.0,115030.0,1.06442784]
[1757962096332,0.11101427,115050.0,115040.0,0.01313]
[1757962096538,0.13247475,115050.0,115040.0,0.72751234]
[1757962096734,0.11112419,115050.0,115040.0,0.72751234]
[1757962096937,0.13180262,115050.0,115040.0,0.72751234]
[1757962097333,0.14632262,115050.0,115040.0,0.72751234]
[1757962097638,0.13280262,115050.0,115040.0,0.72751234]
[1757962098040,0.11212419,115050.0,115040.0,0.72751234]
[1757962098243,0.02256048,115050.0,115040.0,1.39659268]
[1757962099042,0.02356048,115050.0,115040.0,1.39659268]
[1757962099539,0.05820048,115050.0,115040.0,0.97751234]
[1757962099738,0.05820048,115050.0,115040.0,0.96438234]
[1757962099939,0.07899979,115050.0,115040.0,0.71438234]
[1757962100243,0.07899979,115050.0,115040.0,0.72751234]
[1757962100740,0.06547979,115050.0,115040.0,0.72751234]
[1757962101040,0.04468048,115050.0,115040.0,0.81442034]
[1757962101347,0.04468048,115050.0,115040.0,0.72751234]
[1757962101838,0.04468048,115050.0,115040.0,0.76934193]
[1757962102631,0.02356048,115050.0,115040.0,1.23025226]
[1757962103034,0.02356048,115050.0,115040.0,1.14334386]
[1757962103843,0.02356048,115050.0,115040.0,1.23025266]
[1757962104140,0.02356048,115050.0,115040.0,1.60025266]
[1757962104345,0.02356048,115050.0,115040.0,1.39334386]
[1757962104539,0.02356048,115050.0,115040.0,2.18798386]
[1757962104940,0.02356048,115050.0,115040.0,2.18802386]
[1757962105443,0.02256048,115050.0,115040.0,1.48025266]
[1757962105839,0.02256048,115050.0,115040.0,2.18794386]
[1757962106346,0.02156048,115050.0,115040.0,2.18794386]
[1757962106742,0.02156048,115050.0,115040.0,2.27485266]
[1757962107446,0.02156048,115050.0,115040.0,2.27477266]
[1757962109552,0.02156048,115050.0,115040.0,2.18786386]
[1757962110244,0.02156048,115050.0,115040.0,1.39334386]
[1757962110448,0.02156048,115050.0,115040.0,2.18762386]
[1757962111046,0.02156048,115050.0,115040.0,2.27453246]
[1757962111951,0.02156048,115050.0,115040.0,2.18762386]
[1757962112953,0.02156048,115050.0,115040.0,2.27453246]
[1757962113460,0.02156048,115050.0,115040.0,2.18762386]
[1757962114349,0.02156048,115050.0,115040.0,2.27453266]
[1757962114655,0.02156048,115050.0,115040.0,2.18762386]
[1757962117249,0.02156048,115050.0,115040.0,2.39453256]
[1757962117454,0.02156048,115050.0,115040.0,2.60453256]
[1757962118156,0.02156048,115050.0,115040.0,2.27453256]
[1757962118656,0.02156048,115050.0,115040.0,2.38453256]
[1757962121650,0.04247547,115060.0,115050.0,1.14296386]
[1757962122152,0.04447547,115060.0,115050.0,1.14296386]
[1757962122352,0.04447547,115060.0,115050.0,1.93624386]
[1757962122950,0.04447547,115060.0,115050.0,1.18824]
[1757962123156,0.05840547,115060.0,115050.0,1.93624386]
[1757962124359,0.04447547,115060.0,115050.0,1.93624386]
[1757962124755,0.02363359,115060.0,115050.0,2.02314506]
[1757962124955,0.02363359,115060.0,115050.0,2.26314506]
[1757962126366,0.02363359,115060.0,115050.0,2.02314506]
[1757962126655,0.02363359,115060.0,115050.0,2.04314506]
[1757962126960,0.02363359,115060.0,115050.0,2.02314506]
[1757962127357,0.002,115060.0,115050.0,2.02314506]
[1757962128655,0.002,115060.0,115050.0,1.93624386]
[1757962129058,0.002,115060.0,115050.0,2.02314526]
[1757962129859,0.02366891,115060.0,115050.0,2.02314526]
[1757962130059,0.002,115060.0,115050.0,2.59314526]
[1757962131359,0.001,115060.0,115050.0,2.59314526]
[1757962131560,0.0001,115070.0,115060.0,0.03373]
[1757962131759,0.0188901,115080.0,115060.0,0.76853193]
[1757962131959,0.0418801,115080.0,115070.0,1.56258193]
[1757962132161,0.06344804,115080.0,115070.0,1.56258193]
[1757962132564,0.04045624,115080.0,115070.0,1.93658386]
[1757962133065,0.04045624,115080.0,115070.0,1.56258193]
[1757962133263,0.07737624,115080.0,115070.0,0.75617193]
[1757962133460,0.07737624,115080.0,115070.0,1.54929193]
[1757962133659,0.06344624,115080.0,115070.0,1.56242193]
[1757962134264,0.06744624,115080.0,115070.0,1.56242193]
[1757962135064,0.02566614,115080.0,115070.0,2.14331016]
[1757962135365,0.0001,115090.0,115080.0,0.1213887]
[1757962135567,0.0001,115100.0,115090.0,0.1213812]
[1757962135858,0.10920094,115110.0,115100.0,0.03503]
[1757962136056,0.04363124,115110.0,115100.0,1.14383386]
[1757962136360,0.0001,115120.0,115110.0,0.03529]
[1757962136565,0.10355442,115130.0,115120.0,0.03487]
[1757962136768,0.10345432,115130.0,115120.0,0.40887193]
[1757962138163,0.10745432,115130.0,115120.0,0.40887193]
[1757962138662,0.12507743,115130.0,115120.0,0.40887193]
[1757962139064,0.12507743,115130.0,115120.0,0.86972236]
[1757962139065,0.02464163,115130.0,115120.0,0.86972236]
[1757962139266,0.02464163,115130.0,115120.0,1.49052236]
[1757962139267,0.02664163,115130.0,115120.0,1.49052236]
[1757962139462,0.02664163,115130.0,115120.0,1.54052236]
[1757962139663,0.005,115130.0,115120.0,1.54052236]
[1757962139864,0.005,115130.0,115120.0,1.79052236]
[1757962140063,0.0001,115140.0,115130.0,0.118711]
[1757962140261,0.0001,115150.0,115130.0,1.55751486]
[1757962140462,0.0001,115150.0,115140.0,1.93747386]
[1757962140661,0.03572,115160.0,115150.0,0.02216]
[1757962140969,0.41802162,115160.0,115150.0,0.39616193]
[1757962141262,0.05722162,115160.0,115150.0,0.39616193]
[1757962141464,0.0101,115170.0,115150.0,1.34091976]
[1757962141654,0.0101,115170.0,115160.0,1.14367386]
[1757962141858,0.01,115170.0,115160.0,1.47367386]
[1757962142166,0.65642,115170.0,115160.0,0.40887193]
[1757962142465,0.65642,115170.0,115160.0,0.39616193]
[1757962142765,0.01,115170.0,115160.0,1.14367386]
[1757962143565,0.013,115170.0,115160.0,0.76967193]
[1757962143770,0.29862,115170.0,115160.0,1.55224193]
[1757962144466,0.29862,115170.0,115160.0,0.75696193]
[1757962144765,0.29962,115170.0,115160.0,0.75696193]
[1757962146156,0.29962,115170.0,115160.0,0.39616193]
[1757962146361,0.66042,115170.0,115160.0,0.39616193]
[1757962146965,1.03442193,115170.0,115160.0,0.39616193]
[1757962147370,0.66042,115170.0,115160.0,0.39616193]
[1757962149166,0.41042,115170.0,115160.0,0.40887193]
[1757962149766,0.03597,115170.0,115160.0,0.76967193]
[1757962149966,0.014,115170.0,115160.0,0.76967193]
[1757962151365,0.014,115170.0,115160.0,1.14367386]
[1757962153565,0.03525405,115170.0,115160.0,1.14367386]
[1757962153765,0.014,115170.0,115160.0,1.14367386]
[1757962154272,0.03525727,115170.0,115160.0,1.14367386]
[1757962154471,0.014,115170.0,115160.0,1.14367386]
[1757962157365,0.014,115170.0,115160.0,1.60049216]
[1757962157565,0.014,115170.0,115160.0,1.48049216]
[1757962157770,0.014,115170.0,115160.0,1.78049216]
[1757962158568,0.014,115170.0,115160.0,2.19123386]
[1757962158969,0.011,115170.0,115160.0,2.19123386]
[1757962159172,0.013,115170.0,115160.0,1.39367386]
[1757962159372,0.013,115170.0,115160.0,2.19123386]
[1757962159579,0.013,115170.0,115160.0,2.47123386]
[1757962159778,0.012,115170.0,115160.0,2.47123386]
[1757962159979,0.013,115170.0,115160.0,2.47123386]
[1757962162370,0.013,115170.0,115160.0,2.47095386]
[1757962163783,0.013,115170.0,115160.0,2.38638712]
[1757962164385,0.03435995,115170.0,115160.0,2.38638712]
[1757962165983,0.03435995,115170.0,115160.0,1.52474856]
[1757962166182,0.03435995,115170.0,115160.0,1.57474856]
[1757962166486,0.03435995,115170.0,115160.0,1.90646712]
[1757962168284,0.03435995,115170.0,115160.0,1.85646712]
[1757962171294,0.03435995,115170.0,115160.0,1.05910712]
[1757962171488,0.03435995,115170.0,115160.0,1.85618712]
[1757962173191,0.03435995,115170.0,115160.0,2.19300542]
[1757962173393,0.03446067,115170.0,115160.0,2.51300542]
[1757962178604,0.04693062,115180.0,115170.0,0.1175908]
[1757962178904,0.0001,115190.0,115180.0,0.1207432]
[1757962179103,0.0626737,115200.0,115190.0,0.03418]
[1757962179303,0.0625737,115200.0,115190.0,0.36589856]
[1757962180002,0.0837437,115200.0,115190.0,0.36589856]
[1757962180202,0.10216641,115200.0,115190.0,0.36589856]
[1757962180398,0.10216641,115200.0,115190.0,1.16221856]
[1757962181000,0.10516641,115200.0,115190.0,1.16221856]
[1757962181201,0.10516641,115200.0,115190.0,0.36589856]
[1757962181407,0.10516641,115200.0,115190.0,1.16209856]
[1757962181706,0.11833641,115200.0,115190.0,1.16209856]
[1757962182005,0.12133641,115200.0,115190.0,1.16209856]
[1757962182804,0.8007547,115200.0,115190.0,0.02107]
[1757962183107,0.03434,115180.0,115170.0,0.72329856]